[Event "Late-Titled-Tuesday-Blitz-February-27-2024"]
[Site "Chess.com"]
[Date "2024.02.27"]
[Round "9"]
[White "Narek_Ghimoyan"]
[Black "stollenmonster"]
[Result "0-1"]
[WhiteElo "2424"]
[BlackElo "2851"]
[TimeControl "180+1"]
[EndTime "15:43:42 PST"]
[Termination "stollenmonster won by resignation"]

1. d4 {[%clk 0:03:00.9]} 1... Nf6 {[%clk 0:02:56.6]} 2. c4 {[%clk 0:03:00.9]}
2... e6 {[%clk 0:02:54.8]} 3. Nf3 {[%clk 0:03:00.9]} 3... d5 {[%clk 0:02:55.7]}
4. Nc3 {[%clk 0:03:00.8]} 4... Ne4 {[%clk 0:02:55.1]} 5. e3 {[%clk 0:02:55.4]}
5... f5 {[%clk 0:02:55.4]} 6. Bd3 {[%clk 0:02:53.3]} 6... c6 {[%clk 0:02:55.5]}
7. O-O {[%clk 0:02:52.4]} 7... Be7 {[%clk 0:02:56.2]} 8. Qc2 {[%clk 0:02:51.6]}
8... O-O {[%clk 0:02:56.5]} 9. b3 {[%clk 0:02:52]} 9... Bd7 {[%clk 0:02:56.7]}
10. Bb2 {[%clk 0:02:52.5]} 10... Be8 {[%clk 0:02:57.3]} 11. Ne5 {[%clk
0:02:50.8]} 11... Nd7 {[%clk 0:02:57.7]} 12. Nxd7 {[%clk 0:02:49.7]} 12... Qxd7
{[%clk 0:02:58.6]} 13. f3 {[%clk 0:02:49.7]} 13... Nxc3 {[%clk 0:02:58.9]} 14.
Bxc3 {[%clk 0:02:49.5]} 14... Bg6 {[%clk 0:02:59.6]} 15. e4 {[%clk 0:02:49.1]}
15... fxe4 {[%clk 0:03:00.5]} 16. fxe4 {[%clk 0:02:48.5]} 16... Bg5 {[%clk
0:03:01.1]} 17. exd5 {[%clk 0:02:43.2]} 17... Bxd3 {[%clk 0:03:00.8]} 18. Qxd3
{[%clk 0:02:42.5]} 18... exd5 {[%clk 0:03:01]} 19. c5 {[%clk 0:02:26.8]} 19...
Qe6 {[%clk 0:02:51.4]} 20. Rae1 {[%clk 0:02:20.5]} 20... Rxf1+ {[%clk
0:02:50.2]} 21. Qxf1 {[%clk 0:02:20.1]} 21... Qg6 {[%clk 0:02:29.8]} 22. Qe2
{[%clk 0:02:16.6]} 22... Rf8 {[%clk 0:02:24.8]} 23. Qe6+ {[%clk 0:02:01.5]}
23... Qxe6 {[%clk 0:02:24.4]} 24. Rxe6 {[%clk 0:02:02.4]} 24... Kf7 {[%clk
0:02:20.7]} 25. Re2 {[%clk 0:02:01.8]} 25... Bf6 {[%clk 0:02:14.9]} 26. b4
{[%clk 0:01:57.2]} 26... b6 {[%clk 0:02:13.1]} 27. cxb6 {[%clk 0:01:54.2]} 27...
axb6 {[%clk 0:02:13.2]} 28. a4 {[%clk 0:01:53.4]} 28... Ra8 {[%clk 0:02:12.7]}
29. a5 {[%clk 0:01:52.8]} 29... bxa5 {[%clk 0:02:09.2]} 30. bxa5 {[%clk
0:01:52.4]} 30... c5 {[%clk 0:02:10]} 31. Ra2 {[%clk 0:01:01]} 31... cxd4 {[%clk
0:02:07.1]} 32. Bd2 {[%clk 0:01:00.9]} 32... d3 {[%clk 0:01:55.5]} 33. Ra3
{[%clk 0:00:54.5]} 33... Rb8 {[%clk 0:01:14.6]} 34. Rxd3 {[%clk 0:00:53]} 34...
Ke6 {[%clk 0:01:14.7]} 35. g3 {[%clk 0:00:48.9]} 35... Rb2 {[%clk 0:01:14.1]}
36. Kf2 {[%clk 0:00:35.8]} 36... d4 {[%clk 0:01:00.4]} 37. Kf3 {[%clk
0:00:32.8]} 37... Kd5 {[%clk 0:00:59.2]} 38. Bf4 {[%clk 0:00:20.1]} 38... Ra2
{[%clk 0:00:55.4]} 39. g4 {[%clk 0:00:16.8]} 39... Be5 {[%clk 0:00:47.8]} 40.
Bxe5 {[%clk 0:00:13.1]} 40... Kxe5 {[%clk 0:00:47.9]} 41. Rd1 {[%clk 0:00:13.7]}
41... Ra3+ {[%clk 0:00:46.9]} 42. Kg2 {[%clk 0:00:13]} 42... d3 {[%clk
0:00:44.4]} 43. Re1+ {[%clk 0:00:12.8]} 43... Kd4 {[%clk 0:00:44.7]} 44. Kf3
{[%clk 0:00:10.4]} 44... d2+ {[%clk 0:00:43.5]} 0-1

[Event "Late-Titled-Tuesday-Blitz-February-27-2024"]
[Site "Chess.com"]
[Date "2024.02.27"]
[Round "9"]
[White "ural58"]
[Black "Aleksandar-Topalov"]
[Result "1-0"]
[WhiteElo "2491"]
[BlackElo "2367"]
[TimeControl "180+1"]
[EndTime "15:43:43 PST"]
[Termination "ural58 won on time"]

1. e4 {[%clk 0:02:59]} 1... e6 {[%clk 0:02:59.6]} 2. d4 {[%clk 0:02:52.8]} 2...
d5 {[%clk 0:02:59.5]} 3. Nc3 {[%clk 0:02:52.7]} 3... Bb4 {[%clk 0:02:58.3]} 4.
Ne2 {[%clk 0:02:51.6]} 4... Nf6 {[%clk 0:02:57.1]} 5. e5 {[%clk 0:02:36.3]} 5...
Ne4 {[%clk 0:02:56]} 6. f3 {[%clk 0:02:18.9]} 6... Nxc3 {[%clk 0:02:55.1]} 7.
bxc3 {[%clk 0:02:18.5]} 7... Be7 {[%clk 0:02:54]} 8. g3 {[%clk 0:02:17.1]} 8...
b6 {[%clk 0:02:53.8]} 9. Nf4 {[%clk 0:02:13.6]} 9... g6 {[%clk 0:02:51.3]} 10.
h4 {[%clk 0:02:12.8]} 10... h5 {[%clk 0:02:50.4]} 11. Kf2 {[%clk 0:02:12.7]}
11... Ba6 {[%clk 0:02:49.7]} 12. Bd3 {[%clk 0:02:10.3]} 12... Qd7 {[%clk
0:02:44.2]} 13. a4 {[%clk 0:02:09.2]} 13... Bxd3 {[%clk 0:02:42.2]} 14. cxd3
{[%clk 0:02:08.3]} 14... Nc6 {[%clk 0:02:41.8]} 15. Bd2 {[%clk 0:02:07.2]} 15...
Na5 {[%clk 0:02:37.8]} 16. c4 {[%clk 0:01:56]} 16... dxc4 {[%clk 0:02:36.5]} 17.
Bxa5 {[%clk 0:01:55.8]} 17... Qxd4+ {[%clk 0:02:35.9]} 18. Kg2 {[%clk
0:01:54.2]} 18... bxa5 {[%clk 0:02:36]} 19. dxc4 {[%clk 0:01:54.1]} 19... Qxe5
{[%clk 0:02:19.6]} 20. Re1 {[%clk 0:01:41.4]} 20... Qf5 {[%clk 0:02:19]} 21. Rb1
{[%clk 0:01:26.7]} 21... Rd8 {[%clk 0:02:08.9]} 22. Qe2 {[%clk 0:01:16]} 22...
Bb4 {[%clk 0:02:02]} 23. Qe5 {[%clk 0:01:15]} 23... Qxe5 {[%clk 0:01:08.8]} 24.
Rxe5 {[%clk 0:01:14]} 24... Rd2+ {[%clk 0:01:01.8]} 25. Re2 {[%clk 0:01:08.8]}
25... Rd4 {[%clk 0:00:59.8]} 26. Re4 {[%clk 0:01:04.3]} 26... Rxe4 {[%clk
0:00:49.7]} 27. fxe4 {[%clk 0:01:04.4]} 27... Ke7 {[%clk 0:00:48.5]} 28. Nd3
{[%clk 0:01:03.9]} 28... Rb8 {[%clk 0:00:30]} 29. Ne5 {[%clk 0:00:57.8]} 29...
Rb6 {[%clk 0:00:13.9]} 30. Rf1 {[%clk 0:00:56.8]} 30... f6 {[%clk 0:00:10.2]}
31. Nxg6+ {[%clk 0:00:56.9]} 31... Kf7 {[%clk 0:00:10.4]} 32. Nf4 {[%clk
0:00:57.1]} 32... Bd6 {[%clk 0:00:07.7]} 33. Nxh5 {[%clk 0:00:56.7]} 33... Rb2+
{[%clk 0:00:07.6]} 34. Kh3 {[%clk 0:00:56.7]} 34... Be5 {[%clk 0:00:06.3]} 35.
Rd1 {[%clk 0:00:56.5]} 35... Ke7 {[%clk 0:00:04.8]} 36. Nf4 {[%clk 0:00:52.6]}
36... Rb3 {[%clk 0:00:04.4]} 37. Ng6+ {[%clk 0:00:50.5]} 37... Ke8 {[%clk
0:00:02.4]} 38. Nxe5 {[%clk 0:00:51.1]} 38... fxe5 {[%clk 0:00:02.8]} 39. h5
{[%clk 0:00:44.1]} 1-0

[Event "Late-Titled-Tuesday-Blitz-February-27-2024"]
[Site "Chess.com"]
[Date "2024.02.27"]
[Round "9"]
[White "otrov-11"]
[Black "DeTimmerman"]
[Result "0-1"]
[WhiteElo "2613"]
[BlackElo "2748"]
[TimeControl "180+1"]
[EndTime "15:43:44 PST"]
[Termination "DeTimmerman won by resignation"]

1. d4 {[%clk 0:02:41.9]} 1... Nf6 {[%clk 0:02:59.8]} 2. c4 {[%clk 0:02:41]} 2...
e6 {[%clk 0:02:59.3]} 3. g3 {[%clk 0:02:41.3]} 3... d5 {[%clk 0:02:58]} 4. Nf3
{[%clk 0:02:41.9]} 4... Be7 {[%clk 0:02:57]} 5. Bg2 {[%clk 0:02:42.5]} 5... O-O
{[%clk 0:02:57.6]} 6. O-O {[%clk 0:02:43.3]} 6... dxc4 {[%clk 0:02:58.1]} 7. Qc2
{[%clk 0:02:43.4]} 7... b5 {[%clk 0:02:57.3]} 8. a4 {[%clk 0:02:36.7]} 8... b4
{[%clk 0:02:56.1]} 9. Ne5 {[%clk 0:02:25.7]} 9... Qxd4 {[%clk 0:02:54.8]} 10.
Bxa8 {[%clk 0:02:24.8]} 10... Qxe5 {[%clk 0:02:54.6]} 11. Bf4 {[%clk 0:02:23.7]}
11... Qh5 {[%clk 0:02:54.2]} 12. Bg2 {[%clk 0:02:19.2]} 12... e5 {[%clk
0:02:44.7]} 13. Bc1 {[%clk 0:01:47.5]} 13... Be6 {[%clk 0:02:26.5]} 14. Nd2
{[%clk 0:01:45]} 14... Qxe2 {[%clk 0:02:09.7]} 15. Bf3 {[%clk 0:01:32.5]} 15...
Qd3 {[%clk 0:02:09.8]} 16. Qxd3 {[%clk 0:01:33.1]} 16... cxd3 {[%clk 0:02:10.7]}
17. Re1 {[%clk 0:01:33.5]} 17... Nbd7 {[%clk 0:02:08.9]} 18. b3 {[%clk
0:01:32.5]} 18... Nc5 {[%clk 0:02:01.8]} 19. Bb2 {[%clk 0:01:31.5]} 19... e4
{[%clk 0:01:57.6]} 20. Nxe4 {[%clk 0:01:27.9]} 20... Nfxe4 {[%clk 0:01:48.5]}
21. Bxe4 {[%clk 0:01:28.8]} 21... d2 {[%clk 0:01:37.8]} 22. Re2 {[%clk
0:01:20.9]} 22... Nxe4 {[%clk 0:01:38.1]} 23. Rxe4 {[%clk 0:01:20.7]} 23... Rd8
{[%clk 0:01:39]} 24. Rd1 {[%clk 0:00:56.2]} 24... Bf6 {[%clk 0:01:02.6]} 25.
Bxf6 {[%clk 0:00:50.8]} 25... gxf6 {[%clk 0:01:03.5]} 26. Re2 {[%clk 0:00:50.6]}
26... Bxb3 {[%clk 0:00:59.1]} 27. Rdxd2 {[%clk 0:00:46.3]} 27... Rxd2 {[%clk
0:00:59.1]} 28. Rxd2 {[%clk 0:00:47.2]} 28... c5 {[%clk 0:00:59.6]} 29. Rd8+
{[%clk 0:00:33.6]} 29... Kg7 {[%clk 0:00:59.7]} 30. a5 {[%clk 0:00:28.1]} 30...
c4 {[%clk 0:00:59.7]} 31. Kf1 {[%clk 0:00:28.7]} 31... c3 {[%clk 0:00:59.7]} 32.
Ke2 {[%clk 0:00:28.5]} 32... Bc4+ {[%clk 0:00:56.3]} 33. Kd1 {[%clk 0:00:28.9]}
33... b3 {[%clk 0:00:56.6]} 34. Rd4 {[%clk 0:00:15.4]} 34... b2 {[%clk
0:00:53.8]} 35. Kc2 {[%clk 0:00:15.3]} 35... Be6 {[%clk 0:00:48.5]} 36. g4
{[%clk 0:00:10.8]} 36... Ba2 {[%clk 0:00:40.6]} 37. Rb4 {[%clk 0:00:10.9]} 37...
f5 {[%clk 0:00:38.3]} 38. gxf5 {[%clk 0:00:06.5]} 38... Kf6 {[%clk 0:00:38.7]}
39. Rb5 {[%clk 0:00:02.4]} 39... a6 {[%clk 0:00:38.7]} 40. Rb6+ {[%clk
0:00:02.3]} 40... Kxf5 {[%clk 0:00:39.2]} 41. Kxc3 {[%clk 0:00:01.4]} 41... b1=Q
{[%clk 0:00:38]} 42. Rxb1 {[%clk 0:00:02.3]} 42... Bxb1 {[%clk 0:00:38.5]} 0-1

[Event "Late-Titled-Tuesday-Blitz-February-27-2024"]
[Site "Chess.com"]
[Date "2024.02.27"]
[Round "9"]
[White "GMVignirVatnar"]
[Black "rasmussvane"]
[Result "0-1"]
[WhiteElo "2730"]
[BlackElo "2938"]
[TimeControl "180+1"]
[EndTime "15:43:45 PST"]
[Termination "rasmussvane won by resignation"]

1. d4 {[%clk 0:03:00.9]} 1... d5 {[%clk 0:02:55]} 2. c4 {[%clk 0:03:01.3]} 2...
e6 {[%clk 0:02:54.3]} 3. g3 {[%clk 0:03:00.2]} 3... dxc4 {[%clk 0:02:49.6]} 4.
Bg2 {[%clk 0:03:00.1]} 4... a6 {[%clk 0:02:45.3]} 5. Nf3 {[%clk 0:02:58.6]} 5...
b5 {[%clk 0:02:44.4]} 6. Ne5 {[%clk 0:02:50.3]} 6... c6 {[%clk 0:02:44.1]} 7. a4
{[%clk 0:02:45.8]} 7... Bb7 {[%clk 0:02:42.7]} 8. O-O {[%clk 0:02:45.7]} 8...
Nf6 {[%clk 0:02:40.9]} 9. Nc3 {[%clk 0:02:44.1]} 9... Be7 {[%clk 0:02:25.8]} 10.
axb5 {[%clk 0:02:38.9]} 10... axb5 {[%clk 0:02:26.7]} 11. Rxa8 {[%clk
0:02:37.7]} 11... Bxa8 {[%clk 0:02:27.6]} 12. Nxb5 {[%clk 0:02:38]} 12... cxb5
{[%clk 0:02:28.5]} 13. Bxa8 {[%clk 0:02:37.6]} 13... O-O {[%clk 0:02:27.4]} 14.
Bg2 {[%clk 0:02:22.9]} 14... Qb6 {[%clk 0:02:22.5]} 15. e3 {[%clk 0:02:09.2]}
15... Nbd7 {[%clk 0:02:16.7]} 16. Nc6 {[%clk 0:01:59.1]} 16... Bd6 {[%clk
0:02:15.3]} 17. Bd2 {[%clk 0:01:59.4]} 17... Rc8 {[%clk 0:02:10.1]} 18. Nb4
{[%clk 0:01:56.9]} 18... h6 {[%clk 0:02:03.2]} 19. Qc2 {[%clk 0:01:54.7]} 19...
e5 {[%clk 0:02:01.2]} 20. Bc3 {[%clk 0:01:52.2]} 20... Bxb4 {[%clk 0:01:50.6]}
21. Bxb4 {[%clk 0:01:50.6]} 21... exd4 {[%clk 0:01:51.1]} 22. exd4 {[%clk
0:01:51.1]} 22... Qxd4 {[%clk 0:01:52]} 23. Rd1 {[%clk 0:01:51.1]} 23... Qb6
{[%clk 0:01:46.2]} 24. Bh3 {[%clk 0:01:49.3]} 24... Qb7 {[%clk 0:01:09.7]} 25.
Qf5 {[%clk 0:01:40.1]} 25... Re8 {[%clk 0:00:20.9]} 26. Rxd7 {[%clk 0:01:34]}
26... Nxd7 {[%clk 0:00:21.2]} 27. Qxd7 {[%clk 0:01:34.8]} 27... Qxd7 {[%clk
0:00:21.8]} 28. Bxd7 {[%clk 0:01:35.1]} 28... Re2 {[%clk 0:00:22.4]} 29. Bc3
{[%clk 0:01:21.5]} 29... b4 {[%clk 0:00:22]} 30. Kf1 {[%clk 0:00:53.4]} 30...
Re7 {[%clk 0:00:19.8]} 31. Bb5 {[%clk 0:00:42.1]} 31... bxc3 {[%clk 0:00:20]}
32. bxc3 {[%clk 0:00:42.6]} 32... Re4 {[%clk 0:00:15.5]} 33. Bc6 {[%clk
0:00:40.5]} 33... Re5 {[%clk 0:00:15.4]} 34. Bb7 {[%clk 0:00:38]} 34... Kf8
{[%clk 0:00:12.9]} 35. Ba6 {[%clk 0:00:38.3]} 35... Rc5 {[%clk 0:00:11.7]} 36.
Ke2 {[%clk 0:00:38.8]} 36... Ke7 {[%clk 0:00:12.1]} 37. Ke3 {[%clk 0:00:38.4]}
37... Kd6 {[%clk 0:00:11.2]} 38. Kd4 {[%clk 0:00:38.5]} 38... Rd5+ {[%clk
0:00:11.9]} 39. Kxc4 {[%clk 0:00:29.3]} 39... Rd2 {[%clk 0:00:11.9]} 0-1

[Event "Late-Titled-Tuesday-Blitz-February-27-2024"]
[Site "Chess.com"]
[Date "2024.02.27"]
[Round "9"]
[White "rhwr"]
[Black "ArturoCaceres"]
[Result "0-1"]
[WhiteElo "2327"]
[BlackElo "2451"]
[TimeControl "180+1"]
[EndTime "15:43:49 PST"]
[Termination "ArturoCaceres won on time"]

1. e4 {[%clk 0:03:00]} 1... b6 {[%clk 0:02:47.1]} 2. d4 {[%clk 0:02:54.4]} 2...
Bb7 {[%clk 0:02:44.9]} 3. Bd3 {[%clk 0:02:53.4]} 3... e6 {[%clk 0:02:44.8]} 4.
Nf3 {[%clk 0:02:53]} 4... d5 {[%clk 0:02:45.1]} 5. e5 {[%clk 0:02:52.8]} 5...
Ba6 {[%clk 0:02:38.6]} 6. O-O {[%clk 0:02:51]} 6... Bxd3 {[%clk 0:02:37.8]} 7.
Qxd3 {[%clk 0:02:51.7]} 7... Ne7 {[%clk 0:02:36.4]} 8. Bg5 {[%clk 0:02:46.8]}
8... h6 {[%clk 0:02:33.6]} 9. Bh4 {[%clk 0:02:46.7]} 9... Qc8 {[%clk 0:02:26.2]}
10. g4 {[%clk 0:02:36.4]} 10... Qa6 {[%clk 0:02:24]} 11. Qe3 {[%clk 0:02:26.6]}
11... Ng6 {[%clk 0:02:16.1]} 12. Bg3 {[%clk 0:02:24.2]} 12... h5 {[%clk
0:02:15.5]} 13. gxh5 {[%clk 0:02:14]} 13... Rxh5 {[%clk 0:02:16.4]} 14. b3
{[%clk 0:02:01.7]} 14... Be7 {[%clk 0:02:12.1]} 15. c4 {[%clk 0:01:56.4]} 15...
dxc4 {[%clk 0:02:08.8]} 16. bxc4 {[%clk 0:01:56.3]} 16... Qxc4 {[%clk
0:02:08.9]} 17. Rc1 {[%clk 0:01:55.7]} 17... Qd5 {[%clk 0:02:05.9]} 18. Nc3
{[%clk 0:01:50.6]} 18... Qd7 {[%clk 0:02:05.4]} 19. Qe4 {[%clk 0:01:42.4]} 19...
c6 {[%clk 0:02:04]} 20. a4 {[%clk 0:01:32.2]} 20... Na6 {[%clk 0:02:02.7]} 21.
a5 {[%clk 0:01:31.7]} 21... bxa5 {[%clk 0:01:50.3]} 22. Rxa5 {[%clk 0:01:29.8]}
22... Nc7 {[%clk 0:01:50.7]} 23. Na4 {[%clk 0:00:57.5]} 23... Nd5 {[%clk
0:01:39.6]} 24. Ra6 {[%clk 0:00:51.1]} 24... Rc8 {[%clk 0:01:28]} 25. Nc5 {[%clk
0:00:46.6]} 25... Bxc5 {[%clk 0:01:26.8]} 26. Rxc5 {[%clk 0:00:45.5]} 26... Nge7
{[%clk 0:01:23.3]} 27. Qb1 {[%clk 0:00:38.4]} 27... Nf5 {[%clk 0:01:21.1]} 28.
Qc1 {[%clk 0:00:21.4]} 28... Nde7 {[%clk 0:01:14.6]} 29. Qa3 {[%clk 0:00:21.1]}
29... Rc7 {[%clk 0:01:12.5]} 30. Qa4 {[%clk 0:00:20.2]} 30... g5 {[%clk
0:01:07.3]} 31. Nd2 {[%clk 0:00:10.3]} 31... Rh6 {[%clk 0:01:00.3]} 32. Ne4
{[%clk 0:00:09.9]} 32... Kf8 {[%clk 0:00:54.8]} 33. Nf6 {[%clk 0:00:09.3]} 33...
Qxd4 {[%clk 0:00:53.6]} 34. Qa5 {[%clk 0:00:05.2]} 34... Rb7 {[%clk 0:00:47]}
35. Rc1 {[%clk 0:00:03]} 35... Kg7 {[%clk 0:00:41.5]} 36. Qa4 {[%clk 0:00:01.7]}
36... Qxa4 {[%clk 0:00:40.5]} 37. Rxa4 {[%clk 0:00:02.6]} 37... Nd5 {[%clk
0:00:39.1]} 0-1

[Event "Late-Titled-Tuesday-Blitz-February-27-2024"]
[Site "Chess.com"]
[Date "2024.02.27"]
[Round "9"]
[White "ChessFanNM"]
[Black "MiguelEduardoGB"]
[Result "0-1"]
[WhiteElo "2296"]
[BlackElo "2166"]
[TimeControl "180+1"]
[EndTime "15:43:53 PST"]
[Termination "MiguelEduardoGB won on time"]

1. Nf3 {[%clk 0:02:59.9]} 1... Nf6 {[%clk 0:02:59.4]} 2. c4 {[%clk 0:02:58.9]}
2... g6 {[%clk 0:02:59.8]} 3. Nc3 {[%clk 0:02:57.9]} 3... Bg7 {[%clk 0:03:00.3]}
4. e4 {[%clk 0:02:57.9]} 4... O-O {[%clk 0:03:00.5]} 5. d4 {[%clk 0:02:58.3]}
5... d6 {[%clk 0:03:01]} 6. Be2 {[%clk 0:02:57.9]} 6... Nc6 {[%clk 0:03:01.4]}
7. O-O {[%clk 0:02:56.5]} 7... e5 {[%clk 0:03:01]} 8. d5 {[%clk 0:02:57]} 8...
Ne7 {[%clk 0:03:01.3]} 9. b4 {[%clk 0:02:57.3]} 9... Bg4 {[%clk 0:02:59.7]} 10.
Be3 {[%clk 0:02:45.3]} 10... Nd7 {[%clk 0:02:57]} 11. c5 {[%clk 0:02:37.2]}
11... f5 {[%clk 0:02:56.3]} 12. h3 {[%clk 0:01:54.2]} 12... Bxf3 {[%clk
0:02:55.5]} 13. Bxf3 {[%clk 0:01:54.1]} 13... f4 {[%clk 0:02:49.1]} 14. cxd6
{[%clk 0:01:37.6]} 14... cxd6 {[%clk 0:02:50]} 15. Bd2 {[%clk 0:01:36.1]} 15...
a6 {[%clk 0:02:39.7]} 16. a4 {[%clk 0:01:34.6]} 16... Rc8 {[%clk 0:02:22.2]} 17.
Bg4 {[%clk 0:01:33.7]} 17... Nf6 {[%clk 0:02:20.2]} 18. Bxc8 {[%clk 0:01:28.5]}
18... Qxc8 {[%clk 0:02:21.1]} 19. Rc1 {[%clk 0:01:27.7]} 19... Qd7 {[%clk
0:02:17.7]} 20. b5 {[%clk 0:01:19]} 20... g5 {[%clk 0:02:15.8]} 21. Qe2 {[%clk
0:01:00]} 21... g4 {[%clk 0:02:08.6]} 22. hxg4 {[%clk 0:00:59.1]} 22... Nxg4
{[%clk 0:02:08.9]} 23. Qf3 {[%clk 0:00:56.9]} 23... Ng6 {[%clk 0:02:05.4]} 24.
Qh3 {[%clk 0:00:56]} 24... h5 {[%clk 0:01:50.2]} 25. f3 {[%clk 0:00:50.5]} 25...
Kf7 {[%clk 0:01:44.2]} 26. Qxh5 {[%clk 0:00:37.5]} 26... Nf6 {[%clk 0:01:42.8]}
27. Qh3 {[%clk 0:00:37.3]} 27... Qxh3 {[%clk 0:01:21.3]} 28. gxh3 {[%clk
0:00:38.2]} 28... Rh8 {[%clk 0:01:21.8]} 29. Kh2 {[%clk 0:00:36.2]} 29... Nh5
{[%clk 0:01:20.7]} 30. Ne2 {[%clk 0:00:33.6]} 30... Nh4 {[%clk 0:01:20.7]} 31.
Rc7+ {[%clk 0:00:28.7]} 31... Kf6 {[%clk 0:01:19.2]} 32. Rxb7 {[%clk 0:00:17.4]}
32... Bh6 {[%clk 0:01:19.5]} 33. bxa6 {[%clk 0:00:16.6]} 33... Ng3 {[%clk
0:01:19.8]} 34. Rf2 {[%clk 0:00:14.3]} 34... Nxe2 {[%clk 0:01:16.7]} 35. Rxe2
{[%clk 0:00:13.5]} 35... Nxf3+ {[%clk 0:01:17]} 36. Kg2 {[%clk 0:00:13.9]} 36...
Nh4+ {[%clk 0:01:17.3]} 37. Kh1 {[%clk 0:00:13.6]} 37... f3 {[%clk 0:01:15.7]}
38. Rf2 {[%clk 0:00:12]} 38... Bxd2 {[%clk 0:00:51]} 39. Rxd2 {[%clk 0:00:12.9]}
39... Ng6 {[%clk 0:00:35.8]} 40. a7 {[%clk 0:00:11.9]} 40... Rxh3+ {[%clk
0:00:34.7]} 0-1

[Event "Late-Titled-Tuesday-Blitz-February-27-2024"]
[Site "Chess.com"]
[Date "2024.02.27"]
[Round "9"]
[White "ProChessWICTH"]
[Black "GMKrikor"]
[Result "1-0"]
[WhiteElo "2595"]
[BlackElo "2848"]
[TimeControl "180+1"]
[EndTime "15:43:54 PST"]
[Termination "ProChessWICTH won by resignation"]

1. d4 {[%clk 0:02:54.1]} 1... Nf6 {[%clk 0:02:59.5]} 2. c4 {[%clk 0:02:54.7]}
2... g6 {[%clk 0:02:58.7]} 3. Nc3 {[%clk 0:02:55]} 3... d5 {[%clk 0:02:58.8]} 4.
e3 {[%clk 0:02:54.4]} 4... Bg7 {[%clk 0:02:58.3]} 5. Nf3 {[%clk 0:02:53.9]} 5...
O-O {[%clk 0:02:57.2]} 6. b3 {[%clk 0:02:45.8]} 6... c5 {[%clk 0:02:56.5]} 7.
Bb2 {[%clk 0:02:44.8]} 7... cxd4 {[%clk 0:02:56.5]} 8. Nxd4 {[%clk 0:02:42.3]}
8... e5 {[%clk 0:02:55.3]} 9. Nc2 {[%clk 0:02:42.6]} 9... d4 {[%clk 0:02:44.7]}
10. exd4 {[%clk 0:02:39.2]} 10... exd4 {[%clk 0:02:45.6]} 11. Qxd4 {[%clk
0:02:19.1]} 11... Qa5 {[%clk 0:02:18.4]} 12. b4 {[%clk 0:02:11]} 12... Qg5
{[%clk 0:01:56.9]} 13. Ne3 {[%clk 0:02:07.7]} 13... Nc6 {[%clk 0:01:53.2]} 14.
Qd2 {[%clk 0:01:52.6]} 14... Nxb4 {[%clk 0:01:46.1]} 15. Be2 {[%clk 0:01:52.7]}
15... Be6 {[%clk 0:01:42.3]} 16. O-O {[%clk 0:01:45]} 16... Rfd8 {[%clk
0:01:36.1]} 17. Qe1 {[%clk 0:01:41.7]} 17... Rac8 {[%clk 0:01:11.2]} 18. Rd1
{[%clk 0:01:39.1]} 18... Qc5 {[%clk 0:00:57.8]} 19. Ba3 {[%clk 0:01:26.5]} 19...
a5 {[%clk 0:00:54.5]} 20. h3 {[%clk 0:01:17.8]} 20... Qe5 {[%clk 0:00:43.2]} 21.
Na4 {[%clk 0:01:15.4]} 21... Ne4 {[%clk 0:00:38.8]} 22. Bb2 {[%clk 0:01:13.1]}
22... Qg5 {[%clk 0:00:27.1]} 23. Bxg7 {[%clk 0:01:12.1]} 23... Kxg7 {[%clk
0:00:27.5]} 24. a3 {[%clk 0:01:08.6]} 24... Nc6 {[%clk 0:00:24.4]} 25. Bf3
{[%clk 0:01:08.6]} 25... Nf6 {[%clk 0:00:13.1]} 26. Bd5 {[%clk 0:01:05.9]} 26...
Bxd5 {[%clk 0:00:09.3]} 27. cxd5 {[%clk 0:01:05]} 27... Nxd5 {[%clk 0:00:09.9]}
28. Rxd5 {[%clk 0:01:00.5]} 28... Rxd5 {[%clk 0:00:09.7]} 29. Nxd5 {[%clk
0:01:01.4]} 29... Qxd5 {[%clk 0:00:09.6]} 30. Nb6 {[%clk 0:01:02]} 30... Qd8
{[%clk 0:00:06]} 31. Nxc8 {[%clk 0:01:02.3]} 31... Qxc8 {[%clk 0:00:06.9]} 32.
Qc3+ {[%clk 0:01:01.7]} 32... Kg8 {[%clk 0:00:07.4]} 33. Qf6 {[%clk 0:01:00.5]}
33... h5 {[%clk 0:00:05.6]} 34. Rb1 {[%clk 0:00:57.9]} 34... Qd7 {[%clk
0:00:02.3]} 35. Qb2 {[%clk 0:00:50.4]} 35... Nd4 {[%clk 0:00:02.1]} 36. Qxb7
{[%clk 0:00:46.2]} 36... Ne2+ {[%clk 0:00:02.5]} 37. Kf1 {[%clk 0:00:44.5]}
37... Qd3 {[%clk 0:00:02.7]} 38. Qb5 {[%clk 0:00:41.2]} 38... Ng3+ {[%clk
0:00:01.5]} 39. Kg1 {[%clk 0:00:39.8]} 39... Ne2+ {[%clk 0:00:02.2]} 40. Kh1
{[%clk 0:00:38.9]} 40... Qd2 {[%clk 0:00:02.2]} 41. Qe5 {[%clk 0:00:30.6]} 41...
Qc2 {[%clk 0:00:01.7]} 42. Rb8+ {[%clk 0:00:29.4]} 1-0